bitfinex-derivatives/quotes_BTCF0:USTF0_20250324
["timestamp","ask_amount","ask_price","bid_price","bid_amount"]
[1742820817868,0.2296888,87319.0,87318.0,0.06284]
[1742820818071,0.2296888,87319.0,87318.0,0.1773501]
[1742820818072,0.3507888,87319.0,87318.0,0.1773501]
[1742820818370,0.46530157,87319.0,87318.0,0.06284]
[1742820818876,0.46530157,87319.0,87318.0,0.1783501]
[1742820819259,0.46530157,87319.0,87318.0,0.2412501]
[1742820819466,0.46530157,87319.0,87318.0,0.12674]
[1742820819776,0.46530157,87319.0,87318.0,0.2422501]
[1742820820766,0.46530157,87319.0,87318.0,0.12774]
[1742820821166,0.46530157,87319.0,87318.0,0.2422501]
[1742820821575,0.40400157,87319.0,87318.0,0.2422501]
[1742820822775,0.34420157,87319.0,87318.0,0.2422501]
[1742820823367,0.40530157,87319.0,87318.0,0.2422501]
[1742820823572,0.46760157,87319.0,87318.0,0.2422501]
[1742820824466,0.40530157,87319.0,87318.0,0.2422501]
[1742820828267,0.40530157,87319.0,87318.0,0.2412501]
[1742820828575,0.23279277,87319.0,87318.0,0.5112501]
[1742820828767,0.23279277,87319.0,87318.0,0.2412501]
[1742820829168,0.34730157,87319.0,87318.0,0.2412501]
[1742820829778,0.35030157,87319.0,87318.0,0.2402501]
[1742820830164,0.34730157,87319.0,87318.0,0.2402501]
[1742820830363,0.34530157,87319.0,87318.0,0.2402501]
[1742820830580,0.34630157,87319.0,87318.0,0.2402501]
[1742820830771,0.34530157,87319.0,87318.0,0.2402501]
[1742820830978,0.34730157,87319.0,87318.0,0.2402501]
[1742820831371,0.34830157,87319.0,87318.0,0.2402501]
[1742820833282,0.41270157,87319.0,87318.0,0.2402501]
[1742820834182,0.34830157,87319.0,87318.0,0.2402501]
[1742820834883,0.40940157,87319.0,87318.0,0.2402501]
[1742820836380,0.40940157,87319.0,87318.0,0.3004501]
[1742820836888,0.34830157,87319.0,87318.0,0.3004501]
[1742820838683,0.11919277,87319.0,87318.0,0.3004501]
[1742820838872,0.23370157,87319.0,87318.0,0.3004501]
[1742820840483,0.23160157,87319.0,87318.0,0.3004501]
[1742820840683,0.23260157,87319.0,87318.0,0.3004501]
[1742820841281,0.23160157,87319.0,87318.0,0.3004501]
[1742820841586,0.29350157,87319.0,87318.0,0.3004501]
[1742820842487,0.23360157,87319.0,87318.0,0.3004501]
[1742820842694,0.11909277,87319.0,87318.0,0.3004501]
[1742820842877,0.23360157,87319.0,87318.0,0.3004501]
[1742820843073,0.11909277,87319.0,87318.0,0.3004501]
[1742820844177,0.23360157,87319.0,87318.0,0.3004501]
[1742820844378,0.23160157,87319.0,87318.0,0.3004501]
[1742820844579,0.23260157,87319.0,87318.0,0.3004501]
[1742820844990,0.11709277,87319.0,87318.0,0.5604501]
[1742820845193,0.23160157,87319.0,87318.0,0.5604501]
[1742820845493,0.23160157,87319.0,87318.0,0.3004501]
[1742820846216,0.23060157,87319.0,87318.0,0.3004501]
[1742820846392,0.11809277,87319.0,87318.0,0.3004501]
[1742820847489,0.23260157,87319.0,87318.0,0.3004501]
[1742820848482,0.29380157,87319.0,87318.0,0.3004501]
[1742820849186,0.11809277,87319.0,87318.0,0.3004501]
[1742820849384,0.11809277,87319.0,87318.0,0.5204501]
[1742820849786,0.11709277,87319.0,87318.0,0.5204501]
[1742820849984,0.11609277,87319.0,87318.0,0.5204501]
[1742820850292,0.23160157,87319.0,87318.0,0.3004501]
[1742820850497,0.23060157,87319.0,87318.0,0.3004501]
[1742820850793,0.22960157,87319.0,87318.0,0.3004501]
[1742820850994,0.23060157,87319.0,87318.0,0.3004501]
[1742820851289,0.23160157,87319.0,87318.0,0.3004501]
[1742820851589,0.23160157,87319.0,87318.0,0.31643703]
[1742820851778,0.29410157,87319.0,87318.0,0.31643703]
[1742820853594,0.29410157,87319.0,87318.0,0.3004501]
[1742820854194,0.35770157,87319.0,87318.0,0.3004501]
[1742820854784,0.29410157,87319.0,87318.0,0.3004501]
[1742820855289,0.11709277,87319.0,87318.0,0.5304501]
[1742820855497,0.23160157,87319.0,87318.0,0.5304501]
[1742820856586,0.11709277,87319.0,87318.0,0.5304501]
[1742820856790,0.00258,87319.0,87318.0,0.5304501]
[1742820857493,0.002,87319.0,87318.0,0.5304501]
[1742820857880,0.00264,87319.0,87318.0,0.5464654]
[1742820858485,0.1171488,87319.0,87318.0,0.5464654]
[1742820858693,0.1814488,87319.0,87318.0,0.5464654]
[1742820859494,0.1794488,87319.0,87318.0,0.5464654]
[1742820859797,0.1794488,87319.0,87318.0,0.5304501]
[1742820860097,0.06494,87319.0,87318.0,0.5304501]
[1742820860302,0.06694,87319.0,87318.0,0.5304501]
[1742820860687,0.00264,87319.0,87318.0,0.5304501]
[1742820861590,0.0623,87325.0,87324.0,0.1145023]
[1742820861786,0.00017178,87327.0,87326.0,0.1144996]
[1742820861986,0.00089178,87327.0,87326.0,0.6352196]
[1742820862190,0.11539008,87327.0,87326.0,0.6352196]
[1742820862400,0.11539008,87327.0,87326.0,0.7629196]
[1742820862792,0.00089178,87327.0,87326.0,0.7629196]
[1742820863689,0.00289178,87327.0,87326.0,0.7629196]
[1742820864292,8e-05,87340.0,87339.0,0.1144826]
[1742820864501,0.05442,87340.0,87339.0,0.4669026]
[1742820864799,0.00072,87340.0,87339.0,0.7706026]
[1742820865104,8e-05,87342.0,87341.0,0.11448]
[1742820865305,0.23881644,87346.0,87345.0,0.1144747]
[1742820865502,0.23953644,87346.0,87345.0,0.5951947]
[1742820865805,0.23953644,87346.0,87345.0,0.7168947]
[1742820866104,0.23953644,87346.0,87345.0,0.47854536]
[1742820866599,0.29323644,87346.0,87345.0,0.47854536]
[1742820866995,0.05442,87346.0,87345.0,0.47854536]
[1742820867300,0.0587,87346.0,87345.0,0.47854536]
[1742820867494,0.0637,87346.0,87345.0,0.47854536]
[1742820867898,0.1781734,87346.0,87345.0,0.47854536]
[1742820868196,0.1788934,87346.0,87345.0,0.47854536]
[1742820869300,0.1788934,87346.0,87345.0,0.48854536]
[1742820869499,0.06442,87346.0,87345.0,0.48854536]
[1742820869696,0.12092,87346.0,87345.0,0.48854536]
[1742820870399,0.06442,87346.0,87345.0,0.48854536]
[1742820870609,0.0637,87346.0,87345.0,0.48854536]
[1742820871206,0.06442,87346.0,87345.0,0.48854536]
[1742820871414,0.12142,87346.0,87345.0,0.48854536]
[1742820871604,0.1207,87346.0,87345.0,0.48854536]
[1742820872700,0.1207,87346.0,87345.0,0.49854536]
[1742820873007,0.1215,87346.0,87345.0,0.49854536]
[1742820873505,0.0645,87346.0,87345.0,0.49854536]
[1742820873707,0.0637,87346.0,87345.0,0.49854536]
[1742820874099,0.06442,87346.0,87345.0,0.49854536]
[1742820874618,0.0637,87346.0,87345.0,0.49854536]
[1742820874809,0.11764,87346.0,87345.0,0.49854536]
[1742820875407,0.2321134,87346.0,87345.0,0.49854536]
[1742820875804,0.11764,87346.0,87345.0,0.49854536]
[1742820876108,0.117,87346.0,87345.0,0.49854536]
[1742820876497,0.0645,87346.0,87345.0,0.49854536]
[1742820876702,0.0637,87346.0,87345.0,0.73854536]
[1742820877305,0.1197,87346.0,87345.0,0.73854536]
[1742820878617,0.0637,87346.0,87345.0,0.73854536]
[1742820883207,0.01,87346.0,87345.0,0.73854536]
[1742820883413,0.00963215,87346.0,87345.0,0.73854536]
[1742820883919,0.00963215,87346.0,87345.0,0.49854536]
[1742820883920,0.06763215,87346.0,87345.0,0.49854536]
[1742820884417,0.06835215,87346.0,87345.0,0.49854536]
[1742820884819,0.06763215,87346.0,87345.0,0.49854536]
[1742820885517,0.29659341,87346.0,87345.0,0.49854536]
[1742820885716,0.29739341,87346.0,87345.0,0.49854536]
[1742820885909,0.35529341,87346.0,87345.0,0.49854536]
[1742820889520,0.35449341,87346.0,87345.0,0.49854536]
[1742820891506,0.35521341,87346.0,87345.0,0.49854536]
[1742820895519,0.12484001,87346.0,87345.0,0.75854536]
[1742820895720,0.23859341,87346.0,87345.0,0.81304536]
[1742820895920,0.12488001,87346.0,87345.0,0.81304536]
[1742820896218,0.23859341,87346.0,87345.0,0.81304536]
[1742820896451,0.23931341,87346.0,87345.0,0.81304536]
[1742820896624,0.23931341,87346.0,87345.0,0.8283849]
[1742820897723,0.12484001,87346.0,87345.0,0.8283849]
[1742820897929,0.12412001,87346.0,87345.0,0.8283849]
[1742820898117,0.12492001,87346.0,87345.0,0.8283849]
[1742820898422,0.23939341,87346.0,87345.0,0.81304536]
[1742820898616,0.23939341,87346.0,87345.0,0.82842186]
[1742820898617,0.12492001,87346.0,87345.0,0.82842186]
[1742820898820,0.23939341,87346.0,87345.0,0.81304536]
[1742820899220,0.23939341,87346.0,87345.0,0.82843873]
[1742820899525,0.12492001,87346.0,87345.0,0.82843873]
[1742820900315,0.23939341,87346.0,87345.0,0.82843873]
[1742820901022,0.29579341,87346.0,87345.0,0.81304536]
[1742820904719,0.34649341,87346.0,87345.0,0.81304536]
[1742820905224,0.29579341,87346.0,87345.0,0.81304536]
[1742820907821,0.23939341,87346.0,87345.0,0.81304536]
[1742820908023,0.12492001,87346.0,87345.0,0.81304536]
[1742820908218,0.23859341,87346.0,87345.0,0.81304536]
[1742820908428,0.23931341,87346.0,87345.0,0.81304536]
[1742820909331,0.12484001,87346.0,87345.0,0.81304536]
[1742820909718,0.12412001,87346.0,87345.0,0.81304536]
[1742820909919,0.12488001,87346.0,87345.0,0.81304536]
[1742820910214,0.00963215,87346.0,87345.0,0.81304536]
[1742820910425,0.01035215,87346.0,87345.0,0.82845102]
[1742820910634,0.00963215,87346.0,87345.0,0.82845102]
[1742820911519,0.00963215,87346.0,87345.0,0.81304536]
[1742820911721,0.00963215,87346.0,87345.0,0.82831798]
[1742820912123,0.00963215,87346.0,87345.0,0.81304536]
[1742820915930,8e-05,87347.0,87345.0,0.81304536]
[1742820915931,5e-08,87347.0,87346.0,0.1144734]
[1742820916129,0.20451331,87363.0,87362.0,0.1144525]
[1742820916445,0.20451331,87363.0,87362.0,1.0602925]
[1742820916446,0.20523331,87363.0,87362.0,1.0602925]
[1742820916651,0.20451331,87363.0,87362.0,1.06894232]
[1742820916819,0.20451331,87363.0,87362.0,1.12174232]
[1742820918326,0.67976441,87363.0,87362.0,0.41662232]
[1742820918525,0.59428999,87363.0,87362.0,0.12382232]
[1742820918921,0.70860999,87363.0,87362.0,0.00072]
[1742820919125,0.1144616,87355.0,87348.0,0.3608]
[1742820919336,0.1151816,87355.0,87354.0,0.42265858]
[1742820919525,0.1144616,87355.0,87354.0,0.42265858]
[1742820919727,0.22206161,87355.0,87354.0,0.42265858]
[1742820919926,0.33653768,87355.0,87354.0,0.53005858]
[1742820920539,0.33953768,87355.0,87354.0,0.53005858]
[1742820921235,0.33953768,87355.0,87341.0,0.0543]
[1742820921236,0.0572383,87344.0,87331.0,0.27365062]
[1742820921436,0.0572394,87342.0,87341.0,0.1717167]
[1742820921740,0.0572394,87342.0,87341.0,0.1723167]
[1742820921741,0.0579194,87342.0,87341.0,0.1723167]
[1742820922036,0.27941251,87342.0,87341.0,0.1723167]
[1742820922538,0.27941251,87342.0,87341.0,0.2249167]
[1742820922941,0.27941251,87342.0,87341.0,0.2269167]
[1742820923324,0.27941251,87342.0,87341.0,0.4669167]
[1742820923528,0.27941251,87342.0,87341.0,0.47562664]
[1742820923729,0.27941251,87342.0,87341.0,0.47862664]
[1742820926139,0.27941251,87342.0,87341.0,0.18602664]
[1742820926446,0.27941251,87342.0,87333.0,0.00017178]
[1742820926447,0.1144891,87334.0,87333.0,0.00017178]
[1742820926628,0.59044911,87334.0,87333.0,0.11466228]
[1742820926832,0.59044911,87334.0,87333.0,0.11526228]
[1742820927032,0.59044911,87334.0,87333.0,0.33526228]
[1742820927236,0.8112527,87334.0,87333.0,0.33526228]
[1742820929440,0.8152527,87334.0,87333.0,0.33526228]
[1742820930439,0.8132527,87334.0,87333.0,0.33526228]
[1742820932347,0.8122527,87334.0,87333.0,0.33526228]
[1742820932733,0.8122527,87334.0,87333.0,0.11526228]
[1742820933145,0.8122527,87334.0,87333.0,0.37466228]
[1742820933146,0.8132527,87334.0,87333.0,0.37466228]
[1742820933353,0.8132527,87334.0,87333.0,0.37530228]
[1742820933555,0.8132527,87334.0,87333.0,0.47870228]
[1742820933736,0.6979727,87334.0,87333.0,0.47870228]
[1742820934045,0.8132527,87334.0,87333.0,0.47870228]
[1742820934232,0.4524527,87334.0,87333.0,0.47870228]
[1742820934756,0.4019527,87334.0,87333.0,0.47870228]
[1742820935535,0.4540527,87334.0,87333.0,0.47870228]
[1742820935744,0.4530527,87334.0,87333.0,0.47870228]
[1742820935948,0.4540527,87334.0,87333.0,0.47870228]
[1742820936454,0.4530527,87334.0,87333.0,0.47870228]
[1742820936636,0.4520527,87334.0,87333.0,0.47870228]
[1742820937650,0.4530527,87334.0,87333.0,0.47870228]
[1742820939150,0.4540527,87334.0,87333.0,0.47870228]
[1742820939450,0.4539527,87334.0,87333.0,0.47870228]
[1742820939645,0.4529527,87334.0,87333.0,0.47870228]
[1742820940553,0.4519527,87334.0,87333.0,0.47870228]
[1742820946752,0.3998527,87334.0,87333.0,0.47870228]
[1742820949247,0.3998527,87334.0,87333.0,0.21870228]
[1742820955458,0.3998127,87334.0,87333.0,0.21870228]
[1742820955682,0.1153836,87334.0,87333.0,0.21870228]
[1742820956258,0.2298727,87334.0,87333.0,0.21870228]
[1742820960354,0.2802727,87334.0,87333.0,0.21870228]
[1742820961362,0.2298727,87334.0,87333.0,0.21870228]
[1742820962754,0.2298727,87334.0,87333.0,0.21970228]
[1742820963560,0.2808727,87334.0,87333.0,0.21870228]
[1742820966352,0.2298727,87334.0,87333.0,0.21970228]
[1742820966866,0.00088001,87334.0,87333.0,0.21970228]
[1742820968275,0.00088001,87334.0,87333.0,0.22070228]
[1742820970671,0.00088001,87334.0,87333.0,0.22170228]
[1742820972357,0.00088001,87334.0,87333.0,0.26170228]
[1742820972561,8e-05,87335.0,87334.0,0.1144891]
[1742820972765,8e-05,87335.0,87334.0,0.13073065]
[1742820972966,8e-05,87335.0,87334.0,0.22843065]
[1742820973870,0.00096001,87335.0,87334.0,0.22943065]
[1742820974073,8e-05,87335.0,87334.0,0.22943065]
[1742820974377,8e-05,87335.0,87334.0,0.2138291]
[1742820975170,0.00096001,87335.0,87334.0,0.2138291]
[1742820975869,0.00096001,87335.0,87334.0,0.2148291]
[1742820976578,8e-05,87335.0,87334.0,0.2148291]
[1742820976782,0.00108,87335.0,87334.0,0.2148291]
[1742820977070,0.28037008,87335.0,87334.0,0.2148291]
[1742820977472,0.32977008,87335.0,87334.0,0.2148291]
[1742820978577,0.32977008,87335.0,87334.0,0.2138291]
[1742820978962,0.32977008,87335.0,87334.0,0.2128291]
[1742820979679,0.32977008,87335.0,87334.0,0.04964]
[1742820979979,0.32977008,87335.0,87334.0,0.049]
[1742820980167,0.32977008,87335.0,87334.0,0.0496]
[1742820980764,0.32977008,87335.0,87334.0,0.049]
[1742820981475,0.32977008,87335.0,87334.0,0.04968]
[1742820981675,0.32977008,87335.0,87334.0,0.049]
[1742820982279,0.53404165,87335.0,87334.0,0.049]
[1742820982476,0.53404165,87335.0,87334.0,0.04988]
[1742820982676,0.53404165,87335.0,87334.0,0.049]
[1742820986977,0.53404165,87335.0,87334.0,0.04988]
[1742820987180,0.53404165,87335.0,87334.0,0.049]
[1742820988881,0.53404165,87335.0,87334.0,0.0981]
[1742820989182,0.32977008,87335.0,87334.0,0.0981]
[1742820990084,0.32977008,87335.0,87334.0,0.09878]
[1742820990478,0.32977008,87335.0,87334.0,0.0981]
[1742820990885,0.44393008,87335.0,87334.0,0.0981]
[1742820991495,0.44393008,87335.0,87334.0,0.0987]
[1742820991687,0.44393008,87335.0,87334.0,0.0981]
[1742820992387,0.44393008,87335.0,87334.0,0.09898]
[1742820992587,0.44393008,87335.0,87334.0,0.0987]
[1742820997394,0.44385008,87335.0,87334.0,0.0987]
[1742820997691,0.32969008,87335.0,87334.0,0.0987]
[1742820997897,0.11550228,87335.0,87334.0,0.2131891]
[1742820998198,0.36097178,87350.0,87347.0,0.0572353]
[1742820998199,0.057236,87348.0,87347.0,0.0572353]
[1742820998400,0.47604129,87350.0,87349.0,0.1144695]
[1742820998691,0.1158413,87350.0,87349.0,0.1150695]
[1742820998898,0.22974357,87350.0,87349.0,0.2146695]
[1742820999096,0.11527407,87350.0,87349.0,0.2146695]
[1742820999787,0.11527407,87350.0,87349.0,0.5754695]
[1742821000191,0.5987371,87357.0,87353.0,0.0572317]
[1742821000499,0.7139969,87357.0,87356.0,0.1144603]
[1742821000699,0.7139969,87357.0,87356.0,0.1152203]
[1742821000889,0.7139969,87357.0,87356.0,0.1644203]
[1742821001292,0.82847035,87357.0,87356.0,0.1644203]
[1742821001790,0.82847035,87357.0,87356.0,0.17583205]
[1742821001997,0.83247035,87357.0,87356.0,0.17583205]
[1742821002995,0.83647035,87357.0,87356.0,0.17583205]
[1742821003196,0.59853325,87357.0,87356.0,0.17583205]
[1742821003494,0.59853325,87357.0,87356.0,0.22423205]
[1742821005095,0.65013325,87357.0,87356.0,0.22423205]
[1742821006109,0.59853325,87357.0,87356.0,0.22423205]
[1742821010490,0.59853325,87357.0,87356.0,0.2128203]
[1742821010692,0.59853325,87357.0,87356.0,0.22445912]
[1742821012505,0.59853325,87357.0,87356.0,0.27455912]
[1742821013296,0.64943325,87357.0,87356.0,0.27455912]
[1742821015499,0.64943325,87357.0,87356.0,0.2629203]
[1742821015698,0.64943325,87357.0,87356.0,0.14846]
[1742821015893,0.69863325,87357.0,87356.0,0.2621603]
[1742821016094,0.69863325,87357.0,87356.0,0.2128203]
[1742821017004,0.69863325,87357.0,87356.0,0.04916]
[1742821017203,0.1717036,87350.0,87349.0,0.1144682]
[1742821017394,0.5331836,87350.0,87349.0,0.1151482]
[1742821017909,0.74685705,87350.0,87349.0,0.1658482]
[1742821018510,0.74885705,87350.0,87349.0,0.1658482]
[1742821019017,0.75085705,87350.0,87349.0,0.1658482]
[1742821019398,0.70215705,87350.0,87349.0,0.1658482]
[1742821019608,0.70215705,87350.0,87349.0,0.2136482]
[1742821020308,0.75095705,87350.0,87349.0,0.2636482]
[1742821020701,0.39015705,87350.0,87349.0,0.2636482]
[1742821022106,0.75095705,87350.0,87349.0,0.10138]
[1742821022315,0.75095705,87350.0,87349.0,0.1007]
[1742821022495,0.63648755,87350.0,87335.0,0.1717176]
[1742821022702,0.1144747,87345.0,87344.0,0.0515]
[1742821022900,0.1152747,87345.0,87344.0,0.0515]
[1742821023099,0.2659747,87345.0,87344.0,0.05238]
[1742821023311,0.38046387,87345.0,87344.0,0.00088]
[1742821023511,0.1144813,87340.0,87339.0,0.1024]
[1742821023718,0.4760813,87340.0,87339.0,0.1024]
[1742821023900,0.5765813,87340.0,87339.0,0.2168826]
[1742821024108,0.5765813,87340.0,87339.0,0.2177626]
[1742821024314,0.69107703,87340.0,87339.0,0.2177626]
[1742821026503,0.33027703,87340.0,87339.0,0.2677626]
[1742821026704,0.11529573,87340.0,87339.0,0.5077626]
[1742821026903,0.3608,87350.0,87346.0,0.1144734]
[1742821026904,0.11404,87347.0,87346.0,0.1144734]
[1742821027208,0.0572349,87349.0,87348.0,0.0572354]
[1742821027512,0.0581149,87349.0,87348.0,0.0578754]
[1742821027712,0.1725844,87349.0,87348.0,0.0578754]
[1742821028011,0.28708013,87349.0,87348.0,0.0578754]
[1742821028213,0.38468013,87349.0,87348.0,0.0695805]
[1742821029610,0.38468013,87349.0,87348.0,0.0578754]
[1742821029810,0.38668013,87349.0,87348.0,0.0578754]
[1742821030217,0.38668013,87349.0,87348.0,0.0572354]
[1742821032316,0.38668013,87349.0,87343.0,0.18345119]
[1742821032317,0.114476,87344.0,87343.0,0.18345119]
[1742821032520,0.115276,87344.0,87343.0,0.1725117]
[1742821032718,0.217076,87344.0,87343.0,0.1725117]
[1742821033110,0.33155993,87344.0,87343.0,0.1725117]
[1742821033302,0.33155993,87344.0,87343.0,0.0008]
[1742821033706,0.33155993,87344.0,87325.0,0.37692266]
[1742821033707,0.1144891,87334.0,87333.0,0.11466088]
[1742821033908,0.1152891,87334.0,87333.0,0.11526088]
[1742821034103,0.2170891,87334.0,87333.0,0.11526088]
[1742821034413,0.33159269,87334.0,87333.0,0.00077178]
[1742821034616,0.33159269,87334.0,87333.0,0.11526228]
[1742821035005,0.33159269,87334.0,87333.0,0.11626228]
[1742821035817,0.33159269,87334.0,87333.0,0.11826228]
[1742821041105,0.33159269,87334.0,87333.0,0.00377178]
[1742821043710,0.33159269,87334.0,87333.0,0.00377178]
[1742821044110,0.34288176,87334.0,87333.0,0.00377178]
[1742821044511,0.34288176,87334.0,87333.0,0.00277178]
[1742821044713,0.34288176,87334.0,87333.0,0.00317178]
[1742821044912,0.34288176,87334.0,87333.0,0.00117178]
[1742821045118,0.34288176,87334.0,87333.0,0.00217178]
[1742821046426,0.34288176,87334.0,87333.0,0.00277178]
[1742821049117,0.34288176,87334.0,87333.0,0.00177178]
[1742821049319,0.34688176,87334.0,87333.0,0.00077178]
[1742821051426,0.34688176,87334.0,87333.0,0.00017178]
[1742821052115,0.34688176,87334.0,87333.0,0.00085178]
[1742821052722,0.46088176,87334.0,87333.0,0.00085178]
[1742821052926,0.46088176,87334.0,87333.0,0.00017178]
[1742821053545,0.0572525,87322.0,87305.0,0.7767]
[1742821053826,0.114518,87312.0,87311.0,0.04105813]
[1742821054025,0.115398,87312.0,87311.0,0.00105813]
[1742821054224,0.32360159,87312.0,87311.0,0.00105813]
[1742821054426,0.32360159,87312.0,87311.0,0.11557743]
[1742821054616,0.32360159,87312.0,87311.0,0.12698502]
[1742821054816,0.22990159,87312.0,87311.0,0.17898502]
[1742821055016,0.22990159,87312.0,87311.0,0.18198502]
[1742821055818,0.22902159,87312.0,87311.0,0.18198502]
[1742821056623,0.22902159,87312.0,87311.0,0.23108502]
[1742821056822,0.22902159,87312.0,87311.0,0.27818502]
[1742821057224,0.22986159,87312.0,87311.0,0.27818502]
[1742821058221,0.22986159,87312.0,87306.0,1.70563286]
[1742821058222,0.1145246,87307.0,87306.0,0.10760599]
[1742821058429,0.1145246,87307.0,87306.0,0.10828599]
[1742821058725,0.2295246,87307.0,87306.0,0.00068]
[1742821058926,0.43745704,87307.0,87306.0,0.1152059]
[1742821059336,0.43745704,87307.0,87306.0,0.2092059]
[1742821059524,0.43745704,87307.0,87306.0,0.2132059]
[1742821059724,0.43745704,87307.0,87306.0,0.22498901]
[1742821060434,0.32293244,87307.0,87306.0,0.22198901]
[1742821060637,0.32293244,87307.0,87306.0,0.22498901]
[1742821060638,0.16153244,87307.0,87306.0,0.22498901]
[1742821061237,0.20893244,87307.0,87306.0,0.22498901]
[1742821061541,0.20893244,87307.0,87306.0,0.22298901]
[1742821062133,0.32345704,87307.0,87306.0,0.00268]
[1742821062344,0.84785704,87307.0,87306.0,0.00268]
[1742821062541,0.73385704,87307.0,87306.0,0.00268]
[1742821062729,0.84785704,87307.0,87306.0,0.002]
[1742821063040,0.84785704,87307.0,87306.0,0.0026]
[1742821063525,0.79825704,87307.0,87306.0,0.1171259]
[1742821064439,0.79825704,87307.0,87306.0,0.2106259]
[1742821065743,0.79825704,87307.0,87306.0,0.0961]
[1742821066245,0.79825704,87307.0,87306.0,0.2106259]
[1742821068258,0.79825704,87307.0,87306.0,0.0961]
[1742821068636,0.79825704,87307.0,87306.0,0.2106259]
[1742821069632,0.68425704,87307.0,87306.0,0.2106259]
[1742821069849,0.23005704,87307.0,87306.0,0.2106259]
[1742821070632,0.28075704,87307.0,87306.0,0.2106259]
[1742821071044,0.32755704,87307.0,87306.0,0.2106259]
[1742821079139,0.28075704,87307.0,87306.0,0.2106259]
[1742821079861,0.33135704,87307.0,87306.0,0.2106259]
[1742821080749,0.28075704,87307.0,87306.0,0.2106259]
[1742821080954,0.4753131,87317.0,87311.0,0.0572596]
[1742821081147,0.2094134,87316.0,87315.0,0.1145141]
[1742821081346,0.2100934,87316.0,87315.0,0.1151141]
[1742821081747,0.32462257,87316.0,87315.0,0.1151141]
[1742821081947,0.16400917,87316.0,87315.0,0.1151141]
[1742821082148,0.11520917,87316.0,87315.0,0.1151141]
[1742821082947,0.00168,87316.0,87315.0,0.2151141]
[1742821083155,8e-05,87318.0,87317.0,0.1145114]
[1742821083357,8e-05,87318.0,87317.0,0.25660796]
[1742821083547,0.00017178,87320.0,87319.0,0.1145088]
[1742821083743,0.00025178,87320.0,87319.0,0.3391088]
[1742821085246,0.00125178,87320.0,87319.0,0.3391088]
[1742821086652,0.00225178,87320.0,87319.0,0.3391088]
[1742821086854,0.00225178,87320.0,87319.0,0.3390688]
[1742821087660,0.11675928,87320.0,87319.0,0.2251488]
[1742821087853,0.16467928,87320.0,87319.0,0.3390688]
[1742821088053,0.21467928,87320.0,87319.0,0.3390688]
[1742821088254,0.21395928,87320.0,87319.0,0.3390688]
[1742821088648,0.00225178,87320.0,87319.0,0.3390688]
[1742821089083,0.16993484,87333.0,87332.0,0.1144918]
[1742821089253,0.21685484,87333.0,87332.0,0.1144918]
[1742821089455,0.21685484,87333.0,87332.0,0.1616718]
[1742821089754,0.33137679,87333.0,87332.0,0.17326306]
[1742821090163,0.38127679,87333.0,87332.0,0.17326306]
[1742821090756,0.38527679,87333.0,87332.0,0.17326306]
[1742821090959,0.49976729,87333.0,87332.0,0.17326306]
[1742821091551,0.32983245,87333.0,87332.0,0.17326306]
[1742821091959,0.33383245,87333.0,87332.0,0.17326306]
[1742821093167,0.33383245,87333.0,87332.0,0.22076306]
[1742821095161,0.33383245,87333.0,87332.0,0.2091718]
[1742821095365,0.33383245,87333.0,87332.0,0.1626718]
[1742821096772,0.33383245,87333.0,87332.0,0.1151718]
[1742821097368,0.33383245,87333.0,87332.0,0.2106718]
[1742821098371,0.33383245,87333.0,87332.0,0.00068]
[1742821098567,0.0572483,87329.0,87323.0,0.11388]
[1742821098764,0.1144983,87327.0,87326.0,0.0955]
[1742821098958,0.1144983,87327.0,87326.0,0.09618]
[1742821099164,0.2125183,87327.0,87326.0,0.09618]
[1742821099561,0.2125183,87327.0,87326.0,0.14528]
[1742821099968,0.2125183,87327.0,87326.0,0.3697796]
[1742821100170,0.2125183,87327.0,87326.0,0.25528]
[1742821100870,0.1151183,87327.0,87326.0,0.3697796]
[1742821101480,0.2131183,87327.0,87326.0,0.3697796]
[1742821101871,0.2131183,87327.0,87326.0,0.25528]
[1742821102474,0.2161183,87327.0,87326.0,0.25528]
[1742821102976,0.2161183,87327.0,87326.0,0.3697796]
[1742821103278,0.2161183,87327.0,87326.0,0.4836596]
[1742821110878,0.33063107,87327.0,87326.0,0.00068]
[1742821111086,0.38033107,87327.0,87326.0,0.00068]
[1742821111793,0.38033107,87327.0,87326.0,0.05018]
[1742821112087,0.38033107,87327.0,87326.0,0.1646796]
[1742821112687,0.38033107,87327.0,87326.0,0.2120796]
[1742821117081,0.21623277,87327.0,87326.0,0.2120796]
[1742821117287,0.33073107,87327.0,87326.0,0.2621796]
[1742821118375,0.33073107,87327.0,87326.0,0.4521796]
[1742821121691,0.33073107,87327.0,87326.0,1.9521796]
[1742821122194,0.33073107,87327.0,87326.0,0.4521796]
[1742821122992,0.33001107,87327.0,87326.0,0.4521796]
[1742821123294,0.33073107,87327.0,87326.0,0.4521796]
[1742821126788,0.21623277,87327.0,87326.0,0.4521796]
[1742821126993,0.33073107,87327.0,87326.0,0.4521796]
[1742821128395,0.33073107,87327.0,87326.0,0.2120796]
[1742821131992,0.33073107,87327.0,87326.0,0.3220796]
[1742821132303,0.33073107,87327.0,87326.0,0.3020796]
[1742821139894,0.33073107,87327.0,87326.0,0.3174342]
[1742821140100,0.33073107,87327.0,87326.0,0.3020796]
[1742821140309,0.33073107,87327.0,87326.0,0.3174342]
[1742821140505,0.21623277,87327.0,87326.0,0.3174342]
[1742821140705,0.33073107,87327.0,87326.0,0.3174342]
[1742821140908,0.33073107,87327.0,87326.0,0.3020796]
[1742821141497,0.33073107,87327.0,87326.0,0.3173906]
[1742821143207,0.33073107,87327.0,87326.0,0.3573906]
[1742821143910,0.33073107,87327.0,87326.0,0.35741133]
[1742821144912,0.21623277,87327.0,87326.0,0.31741133]
[1742821145316,0.33073107,87327.0,87326.0,0.31741133]
[1742821145719,0.33073107,87327.0,87326.0,0.31743072]
[1742821146618,0.21623277,87327.0,87326.0,0.31743072]
[1742821147010,0.33073107,87327.0,87326.0,0.31743072]
[1742821147520,0.21623277,87327.0,87326.0,0.67823072]
[1742821147720,0.21623277,87327.0,87326.0,0.81823072]
[1742821148605,0.1040449,87334.0,87326.0,0.81823072]
[1742821148606,0.01419091,87356.0,87335.0,0.1144878]
[1742821148811,0.10593716,87341.0,87340.0,0.1144813]
[1742821149137,0.00068006,87341.0,87340.0,2.15048479]
[1742821149322,0.2379371,87357.0,87344.0,0.114476]
[1742821149521,0.2379371,87357.0,87351.0,0.1144669]
[1742821149718,0.2379371,87357.0,87351.0,1.0799069]
[1742821149719,0.00128001,87352.0,87351.0,1.0799069]
[1742821149923,0.2379371,87357.0,87356.0,0.1144603]
[1742821150117,0.00116,87357.0,87356.0,0.6456203]
[1742821150313,0.00017178,87360.0,87359.0,0.1144564]
[1742821150513,0.00017178,87360.0,87359.0,0.50115866]
[1742821150514,0.00133178,87360.0,87359.0,0.50115866]
[1742821150712,0.00133178,87360.0,87359.0,0.64095866]
[1742821151517,0.00133178,87360.0,87359.0,0.89095866]
[1742821151706,0.2380171,87362.0,87361.0,0.1144538]
[1742821151911,0.2380171,87362.0,87361.0,0.6159338]